[Event "11th Tamil Nadu Circuit-IM 2024"]
[Site "Chennai"]
[Date "2024.01.12"]
[Round "6.4"]
[White "Manik, Mikulas"]
[Black "Lokesh, N.."]
[Result "1-0"]
[ECO "C60"]
[WhiteElo "2342"]
[BlackElo "2140"]
[Annotator "RC"]
[PlyCount "93"]
[EventDate "2024.01.09"]
[EventType "tourn"]
[EventCountry "IND"]
[SourceTitle "playchess.com"]
[Source "ChessBase"]
[SourceQuality "1"]
[TimeControl "5400+30"]

1. e4 {[%emt 0:00:03]} e5 {[%emt 0:00:06]} 2. Nf3 {[%emt 0:00:05]} Nc6 {[%emt 0:00:07]} 3. Bb5 {[%emt 0:00:05]} Nge7 {[%emt 0:00:06]} 4. Nc3 {[%emt 0:00:07]} Ng6 {[%emt 0:00:06]} 5. h4 {[%emt 0:00:06]} Nd4 {[%emt 0:00:06]} 6. Bc4 {[%emt 0:00:47]} c6 {[%emt 0:06:15]} 7. d3 {[%emt 0:08:03]} d5 {[%emt 0:02:48]} 8. exd5 {[%emt 0:00:09]} Bg4 {[%emt 0:00:07]} 9. dxc6 {[%emt 0:01:00]} bxc6 {[%emt 0:02:58]} 10. h5 {[%emt 0:01:23]} Bxf3 {[%emt 0:05:38]} 11. gxf3 {[%emt 0:00:03]} Nh4 {[%emt 0:00:08]} 12. Kf1 {[%emt 0:10:09]} Be7 {[%emt 0:10:56]} 13. f4 {[%emt 0:03:13]} Ndf3 {[%emt 0:25:32]} 14. Rh3 {[%emt 0:05:49]} Nd4 {[%emt 0:07:59]} 15. fxe5 {[%emt 0:01:50]} Qd7 {[%emt 0:00:43]} 16. Rg3 {[%emt 0:01:40]} Qf5 {[%emt 0:08:25]} 17. Qg4 {[%emt 0:18:11]} Nxc2 {[%emt 0:00:18]} 18. Rb1 {[%emt 0:00:20]} Qxe5 {[%emt 0:01:15]} 19. Bf4 {[%emt 0:01:34]} Qf5 {[%emt 0:00:13]} 20. Qxg7 {[%emt 0:01:12]} Kd7 {[%emt 0:09:04]} 21. Qe5 {[%emt 0:09:43]} Qxe5 {[%emt 0:03:26]} 22. Bxe5 {[%emt 0:00:02]} Rhg8 {[%emt 0:00:17]} 23. Rxg8 {[%emt 0:03:40]} Rxg8 {[%emt 0:00:11]} 24. Bxf7 {[%emt 0:00:12]} Rg5 {[%emt 0:08:54]} 25. d4 {[%emt 0:09:36]} Nf3 {[%emt 0:01:43]} 26. Rd1 {[%emt 0:00:21]} Rg1+ {[%emt 0:05:02]} 27. Ke2 {[%emt 0:00:05]} Rxd1 {[%emt 0:00:06]} 28. Kxd1 {[%emt 0:00:13]} Ncxd4 {[%emt 0:00:12]} 29. Bb8 {[%emt 0:00:44]} a5 {[%emt 0:01:04]} 30. Ne4 {[%emt 0:01:36]} h6 {[%emt 0:01:07]} 31. Bf4 {[%emt 0:01:39]} Nf5 {[%emt 0:00:11]} 32. Ke2 {[%emt 0:02:24]} N3d4+ {[%emt 0:00:45]} 33. Kd3 {[%emt 0:00:18]} a4 {[%emt 0:00:37]} 34. Bg6 {[%emt 0:00:29]} Ke6 {[%emt 0:00:30]} 35. Bc1 {[%emt 0:03:22]} Nf3 {[%emt 0:00:22]} 36. Bxf5+ {[%emt 0:02:12]} Kxf5 {[%emt 0:00:02]} 37. Ng3+ {[%emt 0:00:18]} Kg4 {[%emt 0:00:35]} 38. Bxh6 {[%emt 0:00:46]} Bf6 {[%emt 0:00:10]} 39. Bc1 {[%emt 0:00:51]} Ne5+ {[%emt 0:00:36]} 40. Kc2 {[%emt 0:03:22]} Kf3 {[%emt 0:00:12]} 41. h6 {[%emt 0:00:41]} Ng4 {[%emt 0:01:20]} 42. h7 {[%emt 0:00:37]} Nxf2 {[%emt 0:00:36]} 43. Bd2 {[%emt 0:00:09]} Ng4 {[%emt 0:00:28]} 44. Bc3 {[%emt 0:01:03]} Ne5 {[%emt 0:00:08]} 45. Nf5 {[%emt 0:00:21]} Kg4 {[%emt 0:01:01]} 46. Nh6+ {[%emt 0:00:24]} Kg5 {[%emt 0:00:20]} 47. Bxe5 {[%emt 0:00:07]} 1-0

[Event "11th Tamil Nadu Circuit-IM 2024"]
[Site "Chennai"]
[Date "2024.01.12"]
[Round "6.5"]
[White "Hemanth Raam"]
[Black "Daakshin Arun"]
[Result "1/2-1/2"]
[ECO "B50"]
[WhiteElo "2161"]
[BlackElo "2309"]
[Annotator "RC"]
[PlyCount "60"]
[EventDate "2024.01.09"]
[EventType "tourn"]
[EventCountry "IND"]
[SourceTitle "playchess.com"]
[Source "ChessBase"]
[SourceQuality "1"]
[TimeControl "5400+30"]

1. e4 {[%emt 0:00:03]} c5 {[%emt 0:00:05]} 2. Nf3 {[%emt 0:00:06]} d6 {[%emt 0:00:05]} 3. Nc3 {[%emt 0:00:35]} Nf6 {[%emt 0:00:19]} 4. Bb5+ {[%emt 0:00:25]} Bd7 {[%emt 0:00:42]} 5. Qe2 {[%emt 0:00:06]} a6 {[%emt 0:04:49]} 6. Bxd7+ {[%emt 0:00:31]} Nbxd7 {[%emt 0:00:15]} 7. O-O {[%emt 0:00:59]} g6 {[%emt 0:03:36]} 8. a4 {[%emt 0:04:14]} Bg7 {[%emt 0:05:48]} 9. b3 {[%emt 0:00:34]} O-O {[%emt 0:01:21]} 10. Bb2 {[%emt 0:01:04]} Rc8 {[%emt 0:04:22]} 11. d3 {[%emt 0:00:42]} e6 {[%emt 0:03:34]} 12. Nd1 {[%emt 0:10:54]} Qc7 {[%emt 0:03:29]} 13. Ne3 {[%emt 0:11:51]} Rfe8 {[%emt 0:08:06]} 14. Rfe1 {[%emt 0:07:04]} h6 {[%emt 0:04:06]} 15. e5 {[%emt 0:09:36]} Nxe5 {[%emt 0:03:09]} 16. Nxe5 {[%emt 0:00:21]} dxe5 {[%emt 0:00:06]} 17. Nc4 {[%emt 0:00:04]} Nd7 {[%emt 0:04:51]} 18. Nxe5 {[%emt 0:01:15]} b5 {[%emt 0:04:00]} 19. axb5 {[%emt 0:18:36]} axb5 {[%emt 0:00:21]} 20. Ra6 {[%emt 0:02:11]} Nxe5 {[%emt 0:08:11]} 21. Bxe5 {[%emt 0:01:34]} Bxe5 {[%emt 0:00:25]} 22. Qxe5 {[%emt 0:00:06]} Qxe5 {[%emt 0:04:51]} 23. Rxe5 {[%emt 0:00:11]} c4 {[%emt 0:01:59]} 24. dxc4 {[%emt 0:08:24]} bxc4 {[%emt 0:00:12]} 25. b4 {[%emt 0:00:03]} Red8 {[%emt 0:00:27]} 26. Kf1 {[%emt 0:02:00]} c3 {[%emt 0:06:50]} 27. Rc5 {[%emt 0:01:57]} Rb8 {[%emt 0:00:35]} 28. Rxc3 {[%emt 0:01:49]} Rxb4 {[%emt 0:00:08]} 29. Ke2 {[%emt 0:00:31]} Re4+ {[%emt 0:00:43]} 30. Re3 {[%emt 0:01:30]} Rc4 {[%emt 0:00:35]} 1/2-1/2

[Event "11th Tamil Nadu Circuit-IM 2024"]
[Site "Chennai"]
[Date "2024.01.13"]
[Round "7.1"]
[White "Daakshin Arun"]
[Black "Wagh Suyog"]
[Result "1-0"]
[ECO "E51"]
[WhiteElo "2309"]
[BlackElo "2266"]
[Annotator "RC"]
[PlyCount "43"]
[EventDate "2024.01.09"]
[EventType "tourn"]
[EventCountry "IND"]
[SourceTitle "playchess.com"]
[Source "ChessBase"]
[SourceQuality "1"]
[TimeControl "5400+30"]

1. d4 {[%emt 0:00:04]} Nf6 {[%emt 0:00:32]} 2. c4 {[%emt 0:00:14]} e6 {[%emt 0:00:09]} 3. Nc3 {[%emt 0:00:04]} Bb4 {[%emt 0:00:21]} 4. e3 {[%emt 0:00:06]} O-O {[%emt 0:01:17]} 5. Bd2 {[%emt 0:00:13]} d5 {[%emt 0:02:45]} 6. Nf3 {[%emt 0:00:39]} b6 {[%emt 0:04:18]} 7. cxd5 {[%emt 0:00:11]} exd5 {[%emt 0:00:02]} 8. Bd3 {[%emt 0:00:12]} Bd6 {[%emt 0:00:42]} 9. O-O {[%emt 0:00:39]} Re8 {[%emt 0:00:06]} 10. Nb5 {[%emt 0:00:05]} Bf8 {[%emt 0:00:05]} 11. Ne5 {[%emt 0:00:05]} Ba6 {[%emt 0:09:43]} 12. Be1 {[%emt 0:01:03]} c5 {[%emt 0:29:52]} 13. a4 {[%emt 0:00:54]} Bb7 {[%emt 0:00:52]} 14. f4 {[%emt 0:00:28]} Nc6 {[%emt 0:02:09]} 15. Bh4 {[%emt 0:01:23]} Bd6 {[%emt 0:12:52]} 16. Bxh7+ {[%emt 0:06:21]} Kf8 {[%emt 0:01:41]} 17. Bxf6 {[%emt 0:04:28]} gxf6 {[%emt 0:00:05]} 18. Qg4 {[%emt 0:01:07]} Nxe5 {[%emt 0:04:31]} 19. fxe5 {[%emt 0:01:35]} Bxe5 {[%emt 0:00:08]} 20. dxe5 {[%emt 0:01:20]} Rxe5 {[%emt 0:00:03]} 21. Qh4 {[%emt 0:04:33]} Kg7 {[%emt 0:00:25]} 22. Bd3 {[%emt 0:01:20]} 1-0

[Event "11th Tamil Nadu Circuit-IM 2024"]
[Site "Chennai"]
[Date "2024.01.13"]
[Round "7.2"]
[White "Lokesh, N.."]
[Black "Hemanth Raam"]
[Result "0-1"]
[ECO "C55"]
[WhiteElo "2140"]
[BlackElo "2161"]
[Annotator "TA"]
[PlyCount "110"]
[EventDate "2024.01.09"]
[EventType "tourn"]
[EventCountry "IND"]
[SourceTitle "playchess.com"]
[Source "ChessBase"]
[SourceQuality "1"]
[TimeControl "5400+30"]

{[%evp 27,110,0,0,0,0,0,0,-145,-145,-162,-137,-252,-145,-165,-148,-252,-225,-235,-174,-186,-190,-200,-171,-288,-156,-132,-145,-143,-139,-147,-64,-69,-66,-66,-67,-69,-64,-143,-127,-208,-230,-254,-229,-272,-249,-279,-270,-445,-43,-43,0,-108,12,-23,-36,-38,-37,-240,-258,-811,-811,-810,-810,-794,-795,-783,-782,-786,-777,-768,-731,-1207,-1201,-833,-782,-782,-736,-844,-829,-1371,-1383,-1876,-1608,-1513,-1458]} 1. e4 {[%emt 0:00:03]} e5 {[%emt 0:00:05]} 2. Nf3 {[%emt 0:00:05]} Nc6 {[%emt 0:00:04]} 3. Bc4 {[%emt 0:00:06]} Nf6 {[%emt 0:00:04]} 4. d3 {[%emt 0:00:11]} h6 {[%emt 0:00:07]} 5. O-O {[%emt 0:02:09]} d6 {[%emt 0:00:17]} 6. a4 {[%emt 0:00:20]} g6 {[%emt 0:01:15]} 7. Re1 {[%emt 0:02:09]} Bg7 {[%emt 0:00:53]} 8. c3 {[%emt 0:03:52]} O-O {[%emt 0:00:21]} 9. Nbd2 {[%emt 0:06:43]} Kh8 {[%emt 0:05:08]} 10. Nf1 {[%emt 0:02:46]} a6 {[%emt 0:09:18]} 11. b4 {[%emt 0:08:30]} d5 {[%emt 0:04:37]} 12. exd5 {[%emt 0:07:48]} Nxd5 {[%emt 0:00:17]} 13. Qb3 {[%emt 0:00:06]} Be6 {[%emt 0:11:36]} 14. Ne3 {[%emt 0:10:07]} Nf4 {[%emt 0:06:35]} 15. Bxe6 {[%emt 0:02:50]} fxe6 {[%emt 0:00:21]} 16. Ng4 {[%emt 0:03:19]} Nxd3 {[%emt 0:09:56]} 17. Re2 {[%emt 0:12:18]} (17. Bxh6 $1 $11 {was the only way to keep the balance.} Bxh6 18. Nxh6) 17... h5 $1 $17 {[%emt 0:02:48]} 18. Bg5 {[%emt 0:00:35]} Qd5 {[%emt 0:09:34]} 19. c4 {[%emt 0:00:27]} (19. Qxd5 $17 {was forced.} exd5 20. Ne3) 19... Qd7 {[%emt 0:08:50]} (19... Qd6 $1 $19 20. Rd1 hxg4 21. Rxd3 gxf3 (21... Qxb4 22. Nd2 $17) 22. Rxd6 fxe2 (22... Nd4 $2 23. Rxd4 exd4 24. Rxe6 $18)) 20. Rd1 $17 {[%emt 0:00:53]} hxg4 {[%emt 0:01:11]} 21. Nh4 {[%emt 0:06:50]} (21. Rxd3 $17 {was the only chance.} Qf7 22. Nd2) 21... Rfd8 $1 $19 {[%emt 0:12:09]} (21... Ncxb4 22. Qxb4 e4 (22... Kh7 $2 23. Qb1 $18) 23. Nxg6+ Kg8 24. Nxf8 Rxf8 25. Qxb7 (25. Rxe4 Qc6 $11) 25... Qxa4 26. Rf1 Nxf2 27. Qb1 $18 (27. Rexf2 Bd4 $18) (27. Qxc7 $2 Nd3 $19)) 22. Nxg6+ {[%emt 0:08:02]} Kh7 {[%emt 0:00:16]} 23. Bxd8 {[%emt 0:05:53]} Rxd8 {[%emt 0:00:32]} 24. b5 {[%emt 0:05:22]} axb5 {[%emt 0:03:29]} (24... Kxg6 25. bxc6 bxc6 26. Re3 $17) (24... Nd4 25. Nf8+ Rxf8 (25... Bxf8 26. Qxd3+ Kh8 27. Kh1 $17) 26. Qxd3+ Kg8 27. Re4) 25. cxb5 {[%emt 0:05:48]} (25. axb5 {only move.} Nd4 (25... Kxg6 26. bxc6 bxc6 27. Re3 $17) 26. Nf8+ Bxf8 (26... Rxf8 $2 27. Qxd3+ Kg8 28. Rb2 $19) 27. Qxd3+ Kh8 28. Kh1) 25... Nd4 {[%emt 0:08:40]} (25... Kxg6 $19 26. bxc6 Qxc6) 26. Nf8+ $17 {[%emt 0:00:05]} Rxf8 {[%emt 0:02:25]} 27. Qxd3+ {[%emt 0:00:08]} Kg8 $1 {[%emt 0:00:03]} 28. Re4 {[%emt 0:05:00]} Qd5 {[%emt 0:01:23]} (28... Qf7 $1 $17 {[%cal Rf7f2]} 29. Qg3 Qf5) 29. Rxg4 $15 {[%emt 0:00:41]} Qa2 {[%emt 0:00:02]} 30. Rf1 {[%emt 0:01:39]} Qxa4 {[%emt 0:00:03]} 31. Qg6 {[%emt 0:00:28]} Rf7 $1 {[%emt 0:00:02]} 32. h4 {[%emt 0:00:06]} (32. Qg5 $15) 32... Qxb5 {[%emt 0:01:10]} 33. Ra1 {[%emt 0:00:13]} (33. Rb1 $17 Qe2 34. Rxb7 Qxf2+ 35. Kh2) 33... Kf8 $1 $19 {[%emt 0:01:38]} 34. Ra8+ {[%emt 0:00:59]} Ke7 {[%emt 0:00:02]} 35. Qg5+ {[%emt 0:00:14]} Bf6 {[%emt 0:01:01]} 36. Qg8 {[%emt 0:00:24]} Qd7 {[%emt 0:00:32]} 37. Qb8 $2 {[%emt 0:00:52]} (37. Rg6 {was necessary.} Nf5 (37... Bxh4 38. Rg7 $14) 38. h5 Qd1+ 39. Kh2) 37... Nf5 $2 {[%emt 0:01:42]} (37... e4 $19 38. Rxe4 Bxh4) 38. Qxb7 $15 {[%emt 0:00:33]} Rh7 {[%emt 0:00:25]} (38... Nxh4 $2 39. Qb4+ Qd6 40. Rxh4 $18) 39. g3 {[%emt 0:00:43]} (39. Rc4 $11 {remains equal.} Nd6 (39... Nxh4 40. Rxc7 Bg7 41. Rxd7+ Kf6 42. Ra7 Nf5 43. Qe4 Kg5 44. Rf7) 40. Qxc7 (40. Qb8 Rh8 $17) 40... Rxh4 (40... Nxc4 41. Qxd7+ Kxd7 42. Ra7+ Ke8 43. Rxh7 $11) 41. Rc1) 39... Nd4 {[%emt 0:00:28]} (39... Qd1+ $1 $17 40. Kg2 (40. Kh2 Qc2 $17) 40... Qd5+ (40... Qxg4 41. Qxc7#) 41. Qxd5 exd5) 40. Qe4 {[%emt 0:00:30]} Rf7 {[%emt 0:00:10]} 41. Rgg8 {[%emt 0:00:37]} Qd5 {[%emt 0:00:17]} 42. Rge8+ $2 {[%emt 0:00:26]} ({Only move:} 42. Rad8 $1 $15 Qxd8 (42... Qxe4 43. Rge8#) (42... Nf3+ $2 43. Qxf3 Qxd8 44. Rxd8 $18) 43. Rxd8 Kxd8 44. h5) 42... Kd7 $19 {[%emt 0:00:06]} 43. Qg6 $2 {[%emt 0:00:28]} (43. Qxd5+ exd5 44. Rg8) 43... Nf3+ $19 {[%emt 0:01:28]} 44. Kf1 {[%emt 0:00:02] [#]} Qc4+ $1 {[%emt 0:00:39]} 45. Kg2 {[%emt 0:00:32] [#]} Nxh4+ $1 {[%emt 0:00:21]} (45... Ne1+ 46. Kh2 Nf3+ 47. Kh3 Qf1+ (47... Rg7 48. Red8+ Bxd8 49. Qxg7+ Be7 50. Qh8 $11) 48. Kg4 $17) 46. gxh4 {[%emt 0:00:06]} Rg7 {[%emt 0:00:01]} 47. Red8+ {[%emt 0:01:27]} Kc6 {[%emt 0:00:13]} 48. Qxg7 {[%emt 0:00:31]} Bxg7 {[%emt 0:00:02]} 49. Rg8 {[%emt 0:00:10]} Qg4+ {[%emt 0:00:57]} 50. Kf1 {[%emt 0:00:09]} Qd1+ {[%emt 0:00:03]} 51. Kg2 {[%emt 0:00:06]} Bf6 {[%emt 0:00:13]} 52. Rg6 {[%emt 0:00:17]} Qd5+ {[%emt 0:00:46]} 53. f3 {[%emt 0:00:52]} Bxh4 {[%emt 0:00:17]} 54. Ra6+ {[%emt 0:00:48]} Kd7 {[%emt 0:00:15]} 55. Rg7+ {[%emt 0:00:15]} Be7 {[%emt 0:00:02]} 0-1

[Event "11th Tamil Nadu Circuit-IM 2024"]
[Site "Chennai"]
[Date "2024.01.13"]
[Round "7.3"]
[White "Ziatdinov, Raset"]
[Black "Manik, Mikulas"]
[Result "0-1"]
[ECO "B72"]
[WhiteElo "2100"]
[BlackElo "2342"]
[Annotator "RC"]
[PlyCount "52"]
[EventDate "2024.01.09"]
[EventType "tourn"]
[EventCountry "IND"]
[SourceTitle "playchess.com"]
[Source "ChessBase"]
[SourceQuality "1"]
[TimeControl "5400+30"]

1. e4 {[%emt 0:00:01]} c5 {[%emt 0:00:08]} 2. Nf3 {[%emt 0:00:04]} d6 {[%emt 0:00:02]} 3. d4 {[%emt 0:00:05]} cxd4 {[%emt 0:00:05]} 4. Nxd4 {[%emt 0:00:04]} Nf6 {[%emt 0:00:06]} 5. Nc3 {[%emt 0:00:02]} g6 {[%emt 0:00:04]} 6. Be3 {[%emt 0:00:10]} a6 {[%emt 0:00:03]} 7. f3 {[%emt 0:00:21]} h5 {[%emt 0:00:07]} 8. Qd2 {[%emt 0:00:12]} e5 {[%emt 0:00:09]} 9. Nb3 {[%emt 0:00:13]} Be6 {[%emt 0:00:03]} 10. O-O-O {[%emt 0:00:17]} Nbd7 {[%emt 0:00:07]} 11. Kb1 {[%emt 0:00:18]} Qc7 {[%emt 0:03:00]} 12. Be2 {[%emt 0:04:08]} b5 {[%emt 0:01:32]} 13. a3 {[%emt 0:01:32]} Rb8 {[%emt 0:06:54]} 14. Rc1 {[%emt 0:07:16]} Nb6 {[%emt 0:07:45]} 15. Bg5 {[%emt 0:05:49]} Nh7 {[%emt 0:06:15]} 16. Bh6 {[%emt 0:04:19]} Nc4 {[%emt 0:00:33]} 17. Bxc4 {[%emt 0:00:08]} bxc4 {[%emt 0:00:11]} 18. Bxf8 {[%emt 0:00:13]} Nxf8 {[%emt 0:00:17]} 19. Na1 {[%emt 0:00:13]} Qb6 {[%emt 0:07:43]} 20. Nd1 {[%emt 0:00:26]} Nd7 {[%emt 0:00:58]} 21. c3 {[%emt 0:00:29]} Nc5 {[%emt 0:01:37]} 22. Nf2 {[%emt 0:05:36]} Rb7 {[%emt 0:03:02]} 23. Rc2 {[%emt 0:00:48]} Na4 {[%emt 0:03:20]} 24. Ka2 {[%emt 0:04:05]} Ke7 {[%emt 0:01:12]} 25. Rb1 {[%emt 0:02:01]} Rhb8 {[%emt 0:00:13]} 26. g4 {[%emt 0:04:09]} Qxf2 {[%emt 0:01:07]} 0-1

[Event "11th Tamil Nadu Circuit-IM 2024"]
[Site "Chennai"]
[Date "2024.01.13"]
[Round "7.4"]
[White "Podolchenko, Evgeniy"]
[Black "Harsh Suresh"]
[Result "1/2-1/2"]
[ECO "D38"]
[WhiteElo "2357"]
[BlackElo "2361"]
[Annotator "RC"]
[PlyCount "60"]
[EventDate "2024.01.09"]
[EventType "tourn"]
[EventCountry "IND"]
[SourceTitle "playchess.com"]
[Source "ChessBase"]
[SourceQuality "1"]
[TimeControl "5400+30"]

1. d4 {[%emt 0:01:17]} d5 {[%emt 0:00:13]} 2. c4 {[%emt 0:00:06]} e6 {[%emt 0:00:08]} 3. Nc3 {[%emt 0:00:05]} Nf6 {[%emt 0:00:06]} 4. cxd5 {[%emt 0:00:04]} exd5 {[%emt 0:00:07]} 5. Bg5 {[%emt 0:00:05]} Bb4 {[%emt 0:00:09]} 6. Nf3 {[%emt 0:02:03]} Nbd7 {[%emt 0:00:28]} 7. e3 {[%emt 0:01:40]} c5 {[%emt 0:00:59]} 8. Be2 {[%emt 0:06:22]} Qa5 {[%emt 0:08:35]} 9. O-O {[%emt 0:04:01]} Bxc3 {[%emt 0:00:11]} 10. bxc3 {[%emt 0:00:03]} Ne4 {[%emt 0:00:10]} 11. c4 {[%emt 0:07:01]} dxc4 {[%emt 0:06:57]} 12. Bxc4 {[%emt 0:05:34]} cxd4 {[%emt 0:12:12]} 13. Qe1 {[%emt 0:00:13]} Qxe1 {[%emt 0:07:10]} 14. Rfxe1 {[%emt 0:00:03]} d3 {[%emt 0:01:45]} 15. Bh4 {[%emt 0:03:57]} Ndc5 {[%emt 0:02:54]} 16. Ne5 {[%emt 0:01:15]} Nd6 {[%emt 0:05:44]} 17. Bxd3 {[%emt 0:06:04]} f6 {[%emt 0:12:24]} 18. Nc4 {[%emt 0:00:18]} Nxc4 {[%emt 0:03:07]} 19. Bxc4 {[%emt 0:00:04]} Be6 {[%emt 0:00:07]} 20. Bf1 {[%emt 0:01:07]} Kf7 {[%emt 0:01:41]} 21. f3 {[%emt 0:00:58]} Rhd8 {[%emt 0:00:30]} 22. a4 {[%emt 0:01:03]} Nb3 {[%emt 0:04:14]} 23. Ra3 {[%emt 0:02:59]} Nd2 {[%emt 0:01:11]} 24. Be2 {[%emt 0:01:12]} Rac8 {[%emt 0:00:29]} 25. e4 {[%emt 0:04:10]} Bc4 {[%emt 0:06:56]} 26. Bd1 {[%emt 0:03:39]} Be6 {[%emt 0:00:06]} 27. Be2 {[%emt 0:01:12]} Bc4 {[%emt 0:00:10]} 28. Bd1 {[%emt 0:00:20]} Be6 {[%emt 0:00:07]} 29. Be2 {[%emt 0:00:17]} Bc4 {[%emt 0:00:06]} 30. Bd1 {[%emt 0:00:50]} Be6 {[%emt 0:00:30]} 1/2-1/2

[Event "11th Tamil Nadu Circuit-IM 2024"]
[Site "Chennai"]
[Date "2024.01.13"]
[Round "7.5"]
[White "Khusenkhojaev, Muhammad"]
[Black "Priyanka, K."]
[Result "1/2-1/2"]
[ECO "E66"]
[WhiteElo "2379"]
[BlackElo "2068"]
[Annotator "TA"]
[PlyCount "106"]
[EventDate "2024.01.09"]
[EventType "tourn"]
[EventCountry "IND"]
[SourceTitle "playchess.com"]
[Source "ChessBase"]
[SourceQuality "1"]
[TimeControl "5400+30"]

{[%evp 24,106,23,30,31,26,29,0,0,0,0,0,0,0,0,0,0,0,0,0,0,-43,-67,-61,-33,-43,-22,-31,-41,-43,-47,-56,-50,-58,-39,-35,-45,-60,-48,-341,-358,-370,-350,-440,-418,-366,-361,-396,-308,-576,-581,-654,-654,-768,0,0,0,-227,-225,-306,-299,-6240,-6240,-6154,-6140,-5173,0,0,0,0,0,0,0,0,0,0,0,0,0,0,0,0,0,0,0]} 1. d4 {[%emt 0:00:17]} Nf6 {[%emt 0:00:27]} 2. c4 {[%emt 0:00:06]} g6 {[%emt 0:01:11]} 3. Nf3 {[%emt 0:00:26]} Bg7 {[%emt 0:00:07]} 4. g3 {[%emt 0:00:04]} d6 {[%emt 0:00:06]} 5. Nc3 {[%emt 0:00:54]} O-O {[%emt 0:00:09]} 6. Bg2 {[%emt 0:00:06]} c5 {[%emt 0:00:15]} 7. O-O {[%emt 0:00:28]} Nc6 {[%emt 0:00:12]} 8. d5 {[%emt 0:00:07]} Na5 {[%emt 0:00:27]} 9. Nd2 {[%emt 0:00:06]} e6 {[%emt 0:05:19]} 10. Qc2 {[%emt 0:00:19]} exd5 {[%emt 0:01:51]} 11. cxd5 {[%emt 0:00:07]} Bd7 {[%emt 0:05:29] E66: King's Indian: Fianchetto: 6...c5 7 0-0 Nc6 8 d5.} 12. b3 {[%emt 0:00:26]} b5 {[%emt 0:07:03]} 13. Bb2 {[%emt 0:00:48]} Re8 {[%emt 0:04:58]} 14. Rfe1 {[%emt 0:00:49]} Rc8 {[%emt 0:02:37]} 15. e4 $146 {[%emt 0:02:45]} ({Predecessor:} 15. Nce4 Bf5 16. Nxf6+ Qxf6 17. Bxf6 Bxc2 18. Bxg7 Kxg7 19. Rac1 Bf5 20. e4 Bd7 21. f4 {1-0 Maric,A (2405)-Chiburdanidze,M (2510) Jakarta Interzonal (Women) 1993}) 15... b4 {[%emt 0:06:40]} 16. Ne2 $1 {[%emt 0:00:13]} Bb5 {[%emt 0:01:41]} 17. Nc4 {[%emt 0:01:05]} Bxc4 {[%emt 0:04:12]} 18. bxc4 {[%emt 0:00:04]} Nd7 {[%emt 0:00:46]} 19. Bxg7 {[%emt 0:00:08]} Kxg7 {[%emt 0:00:05]} 20. Bh3 $1 {[%emt 0:10:40]} Ne5 {[%emt 0:07:01]} 21. Bxc8 {[%emt 0:00:17]} Qxc8 {[%emt 0:00:27]} 22. Kg2 {[%emt 0:00:23]} Naxc4 {[%emt 0:04:24]} 23. Ng1 {[%emt 0:00:15]} Na3 {[%emt 0:01:13]} 24. Qd2 $1 {[%emt 0:03:37]} a5 {[%emt 0:18:47]} 25. f4 {[%emt 0:00:17]} Nd7 {[%emt 0:00:22]} 26. Nf3 {[%emt 0:00:23]} c4 {[%emt 0:04:28]} 27. Re2 {[%emt 0:08:07]} c3 {[%emt 0:05:34]} 28. Qd4+ {[%emt 0:00:13]} f6 {[%emt 0:01:10]} 29. e5 $1 {[%emt 0:01:40]} fxe5 {[%emt 0:03:01]} 30. fxe5 {[%emt 0:00:16]} dxe5 {[%emt 0:01:14]} 31. Qa7 $2 {[%emt 0:07:04][%mdl 8192] [#]} (31. Nxe5 $15 Qc5 32. Nc6+ Qxd4 33. Nxd4 Rxe2+ 34. Nxe2) 31... Nb5 $1 $19 {[%emt 0:03:18]} 32. Qxa5 {[%emt 0:00:39]} Qc4 {[%emt 0:00:11]} 33. Rae1 {[%emt 0:05:19]} e4 {[%emt 0:08:40]} (33... Qxd5 34. Qxb4 Nd4 35. Qxc3 $11) 34. Ng5 {[%emt 0:00:16]} c2 $1 {[%emt 0:01:18]} (34... Qxd5 35. Qxb4 (35. Nxe4 $2 Nf6 $19) 35... Nf6 (35... Qxg5 36. a4 $16) 36. Rb1 $15 (36. Nxe4 $2 Nxe4 37. Rxe4 c2 $19)) 35. Rf2 {[%emt 0:01:37]} (35. Ne6+ Kg8 (35... Rxe6 36. dxe6 c1=Q 37. exd7 $11) 36. Kh3 c1=Q $19 (36... c1=B $2 37. Rxe4 Qxd5 38. Nf4 $18) (36... c1=R $2 37. Rxe4 Qxd5 38. Nf4 $19)) 35... Qxd5 {[%emt 0:01:04]} (35... c1=R 36. Rxc1 Qxd5 (36... Qxc1 $2 37. Ne6+ Kg8 38. Qxb5 $18) 37. Rf7+ Kg8 38. Qxb4 (38. Nxh7 $2 Kxf7 39. Kh3 Kg7 $19) 38... e3+ (38... Qxg5 $2 39. Rxd7 Qe3 40. Qxb5 $18) 39. Kh3 Qxg5 40. Rxd7 Qh5+ 41. Qh4 Qxh4+ 42. Kxh4 $16) 36. Rf7+ $2 {[%emt 0:06:47]} (36. Rxc2 {is the only way for White.} Qxg5 37. Qxb4) 36... Kg8 $19 {[%emt 0:01:35]} (36... Kh6 37. h4 Qd2+ 38. Kh3 $11) 37. Qxb4 {[%emt 0:00:45]} e3+ {[%emt 0:01:04]} (37... Qxg5 38. Rxd7 Qf5 39. Qc4+ Kh8 40. Qd5 $14) 38. Kg1 {[%emt 0:00:45]} Qxg5 $2 {[%emt 0:00:28]} (38... Nd4 $19 39. Qc3 h6 (39... Qxg5 $2 40. Rxd7 Nf3+ 41. Kh1 $19)) 39. Rxd7 $11 {[%emt 0:00:49]} Qf5 {[%emt 0:00:29]} (39... Re6 $2 40. Rf1 $18) 40. Qc4+ $2 {[%emt 0:01:50]} (40. Qb3+ $1 $11 {and White has nothing to worry.} Re6 41. Kg2 (41. Rd8+ $2 Kg7 $19)) 40... Kh8 $19 {[%emt 0:00:18]} 41. Rf7 {[%emt 0:01:21]} Rc8 $1 {[%emt 0:00:46]} 42. Qb3 $2 {[%emt 0:06:36]} (42. Rxf5 Rxc4 43. Rff1 (43. Rxb5 $2 c1=Q $19)) 42... c1=Q $19 {[%emt 0:00:20]} (42... c1=R $2 {too greedy.} 43. Qb2+ (43. Rxf5 Rxe1+ 44. Kg2 Nd4 $11) 43... Nc3 44. Rxf5 Rxe1+ 45. Rf1 Rxf1+ 46. Kxf1 $18) 43. Rxf5 {[%emt 0:00:05]} Qxe1+ {[%emt 0:00:38]} 44. Rf1 {[%emt 0:00:00] [#]} Qe2 $2 {[%emt 0:00:33]} (44... Qxf1+ $1 $19 45. Kxf1 e2+ 46. Kxe2 Nd4+ 47. Kf1 Nxb3 48. axb3 Kg7) 45. Qe6 $1 $11 {[%emt 0:02:48]} Qc2 {[%emt 0:00:27]} (45... Qc4 46. Rf8+ (46. Qxe3 $2 {is the wrong capture.} Nc3 $19) 46... Rxf8 47. Qxc4 $18) 46. Qe5+ {[%emt 0:04:47]} Kg8 {[%emt 0:00:03]} 47. Qd5+ {[%emt 0:00:15]} Kh8 {[%emt 0:00:04]} 48. Qxb5 {[%emt 0:00:07]} Qxa2 {[%emt 0:01:19]} 49. Qe5+ {[%emt 0:02:54]} Kg8 {[%emt 0:00:04]} 50. Qxe3 {[%emt 0:01:34]} Qc4 {[%emt 0:00:24]} 51. Qf3 {[%emt 0:02:00]} Qc5+ {[%emt 0:00:26]} 52. Rf2 {[%emt 0:00:12]} Qc1+ {[%emt 0:00:11]} 53. Kg2 {[%emt 0:00:13]} Qc6 {[%emt 0:00:10]} 1/2-1/2